bitfinex/quotes_SOLUSD_20250811
["timestamp","ask_amount","ask_price","bid_price","bid_amount"]
[1754888161616,5.37518813,186.04,186.02,4.72248388]
[1754888161929,5.37518813,186.04,186.03,4.72248388]
[1754888162530,6.08518813,186.04,186.03,4.72248388]
[1754888163231,5.37518813,186.04,186.03,4.72248388]
[1754888163399,0.06,186.05,186.03,4.72248388]
[1754888163603,0.06,186.05,186.04,4.72248388]
[1754888164119,0.06,186.05,186.04,20.37869945]
[1754888166347,0.06,186.05,186.04,19.82869945]
[1754888166552,0.77,186.05,186.03,89.6]
[1754888166833,0.06,186.05,186.04,4.72248388]
[1754888167251,0.77,186.05,186.04,4.72248388]
[1754888167612,0.06,186.05,186.04,4.72248388]
[1754888167834,0.77,186.05,186.04,4.72248388]
[1754888168741,6.14489922,186.05,186.04,4.72248388]
[1754888169115,5.43489922,186.05,186.01,15.10621557]
[1754888169316,6.14489922,186.05,186.01,15.10621557]
[1754888169518,6.14489922,186.05,186.04,4.72248388]
[1754888170751,5.43489922,186.05,186.04,4.72248388]
[1754888171940,0.06,186.05,186.04,4.72248388]
[1754888172816,0.06,186.05,186.04,5.27248388]
[1754888173230,0.06,186.05,186.04,19.82869945]
[1754888173442,0.06,186.05,186.04,4.72248388]
[1754888173826,0.06,186.05,186.03,39.42]
[1754888174130,0.06,186.05,186.04,4.72248388]
[1754888174648,0.06,186.05,186.03,4.72248388]
[1754888174827,0.77,186.05,186.03,4.72248388]
[1754888175448,0.77,186.05,186.04,4.72248388]
[1754888175829,0.77,186.05,186.02,94.32248388]
[1754888176045,0.71,186.04,186.02,89.6]
[1754888176343,0.71,186.04,186.02,94.32248388]
[1754888176649,0.71,186.04,186.02,89.6]
[1754888177021,6.08547707,186.03,186.01,39.42]
[1754888177215,6.08547707,186.03,186.0,45.82869945]
[1754888178236,6.08547707,186.03,186.01,4.72248388]
[1754888178444,6.08547707,186.03,186.02,4.72248388]
[1754888178628,6.08547707,186.03,186.01,4.72248388]
[1754888179129,6.08547707,186.03,186.0,45.82869945]
[1754888180327,6.08547707,186.03,186.01,4.72248388]
[1754888180328,5.37547707,186.03,186.01,4.72248388]
[1754888182452,5.37518813,186.04,186.01,4.72248388]
[1754888182828,6.08518813,186.04,186.01,94.32248388]
[1754888184822,6.08518813,186.04,186.01,89.6]
[1754888185027,6.08518813,186.04,186.01,94.32248388]
[1754888185729,0.71,186.03,186.01,94.32248388]
[1754888185950,5.37518813,186.04,186.01,94.32248388]
[1754888186147,6.08518813,186.04,186.01,94.32248388]
[1754888186528,0.06,186.05,186.03,4.72248388]
[1754888186740,0.06,186.05,186.04,59.20869945]
[1754888186944,0.06,186.05,186.04,59.75869945]
[1754888187423,0.06,186.05,186.04,55.03621557]
[1754888187626,0.06,186.05,186.04,59.75869945]
[1754888188626,0.06,186.05,186.04,65.13388758]
[1754888188823,0.06,186.05,186.04,59.75869945]
[1754888189830,0.06,186.05,186.04,91.13388758]
[1754888190252,0.06,186.05,186.04,91.67140639]
[1754888190749,0.06,186.05,186.04,86.29621826]
[1754888191346,0.06,186.05,186.04,85.75869945]
[1754888191742,0.06,186.05,186.04,175.35869945]
[1754888191939,0.06,186.05,186.04,183.47499083]
[1754888192344,0.06,186.05,186.04,157.47499083]
[1754888199182,0.06,186.07,186.06,15.10621557]
[1754888199470,0.06,186.1,186.08,41.10621557]
[1754888199674,0.06,186.1,186.09,54.69608602]
[1754888200882,0.06,186.11,186.1,15.10621557]
[1754888201087,0.06,186.15,186.12,41.10621557]
[1754888201258,0.06,186.15,186.13,15.10621557]
[1754888201452,0.06,186.15,186.14,59.16869945]
[1754888201654,0.06,186.15,186.14,80.44621557]
[1754888201854,0.06,186.15,186.14,85.71869945]
[1754888202172,0.06,186.15,186.14,86.25592949]
[1754888202687,0.06,186.17,186.16,45.82869945]
[1754888202989,0.06,186.17,186.16,85.16869945]
[1754888205065,0.06,186.17,186.16,85.70587177]
[1754888205870,0.06,186.17,186.16,91.07759501]
[1754888206122,0.06,186.17,186.16,85.70587177]
[1754888207687,0.06,186.17,186.16,91.07759501]
[1754888208897,0.06,186.17,186.16,85.70587177]
[1754888209913,0.76,186.17,186.16,45.82869945]
[1754888210115,0.76,186.17,186.16,85.12869945]
[1754888210314,6.13143471,186.17,186.16,44.02248388]
[1754888210701,6.13143471,186.17,186.15,4.72248388]
[1754888210904,5.43143471,186.17,186.16,39.3]
[1754888211107,5.43143471,186.17,186.16,44.02248388]
[1754888211412,6.13143471,186.17,186.16,44.02248388]
[1754888211792,6.13143471,186.17,186.16,39.3]
[1754888217096,6.13143471,186.17,186.14,4.72248388]
[1754888217417,0.7,186.16,186.15,39.28]
[1754888217816,0.7,186.16,186.15,89.6]
[1754888218028,0.7,186.16,186.15,128.88]
[1754888219123,5.43143471,186.17,186.16,15.10621557]
[1754888219124,0.06,186.17,186.16,15.10621557]
[1754888219312,0.06,186.17,186.16,20.36587177]
[1754888219713,0.71,186.17,186.16,59.10869945]
[1754888221398,0.06,186.17,186.16,59.10869945]
[1754888222430,0.71,186.17,186.16,59.10869945]
[1754888222814,0.71,186.17,186.16,44.00248388]
[1754888223525,0.06,186.17,186.16,44.00248388]
[1754888224223,0.06,186.17,186.16,133.60248388]
[1754888228123,0.06,186.17,186.16,138.97420712]
[1754888228814,0.06,186.17,186.16,154.08042269]
[1754888229019,0.06,186.17,186.16,154.63042269]
[1754888230324,0.06,186.17,186.16,149.25869945]
[1754888230525,0.06,186.17,186.16,148.70869945]
[1754888231530,0.71,186.17,186.16,148.70869945]
[1754888232927,0.06,186.17,186.16,148.70869945]
[1754888234613,0.71,186.17,186.16,148.70869945]
[1754888235945,0.71,186.17,186.16,109.42869945]
[1754888236235,0.71,186.17,186.16,148.64869945]
[1754888238845,0.06,186.17,186.16,154.02042269]
[1754888240346,0.06,186.17,186.16,148.64869945]
[1754888242447,0.06,186.18,186.17,15.10621557]
[1754888242752,0.06,186.18,186.17,110.51584292]
[1754888243631,0.06,186.18,186.17,149.69584292]
[1754888243832,0.06,186.18,186.17,149.15869945]
[1754888244332,0.06,186.18,186.17,153.98013416]
[1754888245350,0.06,186.18,186.17,154.53013416]
[1754888246745,0.06,186.2,186.19,41.10621557]
[1754888246947,0.06,186.21,186.2,15.10621557]
[1754888247139,0.06,186.21,186.2,15.65621557]
[1754888247338,0.06,186.21,186.2,25.10118333]
[1754888247557,0.06,186.21,186.2,114.70118333]
[1754888247760,0.06,186.21,186.2,114.15118333]
[1754888248073,0.06,186.21,186.2,114.68824025]
[1754888248257,0.06,186.21,186.2,115.23824025]
[1754888248457,0.06,186.21,186.2,114.70118333]
[1754888248946,0.06,186.21,186.2,120.07175261]
[1754888250051,0.06,186.21,186.2,119.52175261]
[1754888251184,0.06,186.21,186.2,114.79926873]
[1754888251574,0.06,186.21,186.2,119.52175261]
[1754888253752,0.06,186.22,186.21,89.54]
[1754888253952,0.06,186.22,186.21,174.50869945]
[1754888255867,0.06,186.22,186.21,154.42898031]
[1754888256169,0.06,186.22,186.21,148.50869945]
[1754888256364,0.06,186.22,186.21,153.87898031]
[1754888257083,0.06,186.22,186.21,154.42898031]
[1754888258092,0.06,186.22,186.21,153.87898031]
[1754888258471,0.06,186.22,186.21,154.42898031]
[1754888259088,0.06,186.22,186.21,153.87898031]
[1754888260161,0.06,186.22,186.21,148.50869945]
[1754888261075,0.06,186.22,186.21,153.87898031]
[1754888264080,0.73,186.22,186.21,174.46869945]
[1754888266683,6.09999248,186.22,186.2,89.57]
[1754888266981,6.09999248,186.22,186.21,39.1]
[1754888267182,0.06,186.22,186.21,39.1]
[1754888267780,6.09999248,186.22,186.21,39.1]
[1754888268487,0.73,186.22,186.21,39.1]
[1754888270491,6.09999248,186.22,186.21,39.1]
[1754888271479,0.73,186.22,186.21,39.1]
[1754888271969,10.82247636,186.22,186.2,0.03]
[1754888272171,4.72248388,186.21,186.2,0.03]
[1754888272399,5.39248388,186.21,186.2,0.03]
[1754888272693,0.67,186.21,186.2,0.03]
[1754888272995,5.39248388,186.21,186.2,0.03]
[1754888274379,10.76276474,186.21,186.2,0.03]
[1754888279974,15.48524862,186.21,186.16,0.03]
[1754888280195,4.72248388,186.17,186.16,0.03]
[1754888280491,10.09391859,186.17,186.16,0.03]
[1754888280795,10.75391859,186.17,186.16,0.03]
[1754888284374,10.75391859,186.17,186.15,0.03]
[1754888284596,5.38248388,186.16,186.15,0.03]
[1754888286205,0.66,186.16,186.15,0.03]
[1754888286516,5.37172324,186.16,186.15,0.03]
[1754888286690,6.03172324,186.16,186.15,0.03]
[1754888288376,10.75305316,186.2,186.15,5.30248388]
[1754888288905,0.66,186.19,186.15,5.30248388]
[1754888289279,5.37056928,186.2,186.15,89.57]
[1754888289280,4.72248388,186.2,186.15,89.57]
[1754888289487,4.72248388,186.17,186.15,89.57]
[1754888289685,5.38248388,186.17,186.15,0.03]
[1754888289922,0.66,186.19,186.15,0.03]
[1754888290086,5.38248388,186.19,186.15,0.03]
[1754888290288,0.66,186.18,186.15,0.03]
[1754888290805,0.66,186.21,186.17,4.72248388]
[1754888291112,0.06,186.22,186.15,39.6]
[1754888291113,4.72248388,186.19,186.15,39.6]
[1754888291411,5.38248388,186.18,186.15,39.05]
[1754888291705,5.38248388,186.17,186.15,39.05]
[1754888291906,0.66,186.16,186.15,39.05]
[1754888292121,0.66,186.16,186.15,0.03]
[1754888292617,6.03172324,186.16,186.15,0.03]
[1754888294807,0.66,186.18,186.15,0.03]
[1754888296800,5.37143471,186.17,186.15,0.58]
[1754888297012,6.03143471,186.17,186.15,0.03]
[1754888297609,0.66,186.16,186.15,0.03]
[1754888298817,6.03172324,186.16,186.15,0.03]
[1754888299517,10.75420712,186.16,186.15,0.03]
[1754888299695,6.03172324,186.16,186.15,0.03]
[1754888300814,5.37172324,186.16,186.15,0.03]
[1754888301715,6.03172324,186.16,186.15,0.03]
[1754888302795,5.37172324,186.16,186.15,0.03]
[1754888303803,6.03172324,186.16,186.15,0.03]
[1754888304199,5.37172324,186.16,186.15,0.03]
[1754888307305,0.66,186.16,186.15,0.03]
[1754888311506,0.06,186.18,186.17,38.96]
[1754888311704,0.06,186.18,186.17,43.68248388]
[1754888312108,0.06,186.18,186.17,59.33869945]
[1754888312311,0.06,186.18,186.17,148.87869945]
[1754888313832,0.06,186.18,186.17,148.32869945]
[1754888314916,0.06,186.18,186.17,114.73900745]
[1754888315121,0.71,186.18,186.17,148.95652357]
[1754888315503,6.0811462,186.18,186.17,148.95652357]
[1754888315756,6.0811462,186.18,186.17,143.58621557]
[1754888318218,5.4311462,186.18,186.17,143.58621557]
[1754888318622,5.4311462,186.18,186.17,148.30869945]
[1754888319627,0.06,186.18,186.17,143.58621557]
[1754888319830,0.71,186.18,186.17,128.48]
[1754888320127,0.71,186.18,186.17,128.46]
[1754888320502,0.71,186.18,186.17,133.18248388]
[1754888320503,0.06,186.18,186.17,133.18248388]
[1754888320925,0.06,186.18,186.17,128.46]
[1754888321130,0.06,186.18,186.17,133.18248388]
[1754888321850,0.71,186.18,186.17,128.46]
[1754888323136,0.06,186.18,186.17,128.46]
[1754888324131,0.71,186.18,186.17,128.46]
[1754888324918,0.71,186.18,186.17,38.92]
[1754888325115,5.43248388,186.18,186.15,89.57]
[1754888325321,5.43248388,186.18,186.16,38.9]
[1754888325642,6.02143471,186.17,186.16,38.9]
[1754888326250,5.37143471,186.17,186.16,38.9]
[1754888327327,6.02143471,186.17,186.16,38.9]
[1754888329009,5.37143471,186.17,186.16,38.9]
[1754888329826,5.4311462,186.18,186.16,38.9]
[1754888330231,6.0811462,186.18,186.16,38.9]
[1754888330724,0.06,186.18,186.17,5.27248388]
[1754888330928,0.06,186.18,186.17,20.91584292]
[1754888331137,0.06,186.18,186.17,26.28677792]
[1754888334633,0.06,186.18,186.17,25.19963445]
[1754888334821,0.06,186.18,186.17,19.82869945]
[1754888335141,0.06,186.18,186.17,21.97837045]
[1754888335540,0.06,186.18,186.17,19.82869945]
[1754888335741,0.06,186.18,186.17,15.10621557]
[1754888336043,0.06,186.18,186.17,19.82869945]
[1754888336630,0.06,186.18,186.17,104.64621557]
[1754888337024,0.06,186.18,186.17,109.36869945]
[1754888337847,0.06,186.18,186.17,104.64621557]
[1754888338024,0.71,186.18,186.17,128.4]
[1754888339240,6.0811462,186.18,186.17,128.4]
[1754888340245,0.71,186.18,186.17,128.4]
[1754888341431,0.06,186.18,186.17,89.54]
[1754888341639,0.06,186.18,186.17,128.4]
[1754888342038,0.75,186.18,186.17,128.4]
[1754888342654,0.75,186.18,186.17,38.86]
[1754888343153,6.1211462,186.18,186.17,38.86]
[1754888343352,6.1211462,186.18,186.16,15.10621557]
[1754888343636,5.4311462,186.18,186.17,38.86]
[1754888344353,6.1211462,186.18,186.17,38.86]
[1754888344858,10.84363008,186.18,186.15,0.03]
[1754888345034,0.69,186.17,186.16,38.84]
[1754888345240,5.41248388,186.17,186.15,0.03]
[1754888345439,5.41248388,186.16,186.15,38.87]
[1754888345636,5.41248388,186.16,186.15,0.03]
[1754888345939,0.69,186.16,186.15,0.03]
[1754888347160,6.06172324,186.16,186.15,0.03]
[1754888348466,10.78420712,186.16,186.15,0.03]
[1754888348652,6.06172324,186.16,186.15,0.03]
[1754888348843,10.78420712,186.16,186.15,0.03]
[1754888349653,6.06172324,186.16,186.15,0.03]
[1754888350470,10.78420712,186.16,186.15,0.03]
[1754888350639,10.78420712,186.16,186.14,0.03]
[1754888350840,5.41248388,186.15,186.12,0.03]
[1754888351141,4.72248388,186.13,186.12,0.03]
[1754888351869,5.41248388,186.13,186.11,0.03]
[1754888352053,4.72248388,186.11,186.1,0.03]
[1754888352472,10.78565028,186.11,186.1,0.03]
[1754888353955,6.0631664,186.11,186.1,0.03]
[1754888354253,10.78565028,186.11,186.1,0.03]
[1754888359244,15.50813416,186.11,186.1,1e-08]
[1754888361190,15.50813416,186.11,186.09,1e-08]
[1754888361388,44.23248388,186.1,186.09,1e-08]
[1754888361565,48.95496776,186.1,186.09,1e-08]
[1754888362359,26.0,186.07,186.06,0.03]
[1754888362569,26.0,186.06,186.04,0.03]
[1754888362764,26.0,186.06,186.01,0.2]
[1754888362765,4.72248388,186.05,186.01,0.2]
[1754888362970,30.72248388,186.02,186.01,0.2]
[1754888363165,36.09824992,186.02,186.01,0.2]
[1754888363380,36.78824992,186.02,186.01,0.2]
[1754888363580,26.69,186.02,186.01,0.2]
[1754888363881,5.41248388,186.02,186.01,0.2]
[1754888364671,10.78824992,186.02,186.01,0.2]
[1754888365380,24.22766503,186.02,185.98,0.03]
[1754888365683,4.72248388,185.99,185.98,0.03]
[1754888366170,0.69,185.99,185.98,0.03]
[1754888366369,5.41248388,185.99,185.98,0.03]
[1754888367381,10.78911703,185.99,185.98,0.03]
[1754888367960,10.78911703,185.99,185.96,0.03]
[1754888368199,4.72248388,185.97,185.96,0.03]
[1754888368403,4.72248388,185.97,185.95,0.2]
[1754888368878,0.69,185.98,185.95,0.2]
[1754888369084,4.72248388,185.97,185.95,0.2]
[1754888369795,5.37750053,185.96,185.95,0.2]
[1754888371473,5.37721137,185.97,185.95,0.2]
[1754888371793,5.37721137,185.97,185.95,0.78]
[1754888372571,5.37721137,185.97,185.95,0.2]
[1754888374970,4.72248388,185.97,185.95,0.2]
[1754888376714,10.75940612,185.98,185.95,0.2]
[1754888377109,4.72248388,185.97,185.95,0.2]
[1754888377310,0.66,185.97,185.95,0.2]
[1754888377617,5.38248388,185.97,185.95,0.2]
[1754888379122,5.37750053,185.96,185.95,0.2]
[1754888382007,6.03750053,185.96,185.95,0.2]
[1754888382418,5.37750053,185.96,185.95,0.2]
[1754888384605,6.03724292,185.97,185.95,0.2]
[1754888385241,6.03667948,185.99,185.95,0.2]
[1754888385542,10.75916336,185.99,185.95,0.2]
[1754888385722,0.66,185.98,185.95,0.2]
[1754888386253,5.37721137,185.97,185.95,0.2]
[1754888388336,0.66,185.96,185.95,0.2]
[1754888388542,6.03721137,185.97,185.95,0.2]
[1754888390724,10.75969525,185.97,185.95,0.2]
[1754888390946,6.03721137,185.97,185.95,0.2]
[1754888394959,0.66,185.96,185.95,0.2]
[1754888396129,6.03750053,185.96,185.95,0.2]
[1754888397857,10.75998441,185.96,185.95,0.2]
[1754888398264,6.03750053,185.96,185.95,0.2]
[1754888398461,10.75998441,185.96,185.95,0.2]
[1754888398660,6.03750053,185.96,185.95,0.2]
[1754888398882,10.75998441,185.96,185.95,0.2]
[1754888399368,6.03750053,185.96,185.95,0.2]
[1754888401424,10.75998441,185.96,185.95,1e-08]
[1754888401682,26.0,185.94,185.87,94.32248388]
[1754888401874,4.72248388,185.91,185.87,89.6]
[1754888402254,6.09923614,185.9,185.88,4.72248388]
[1754888402455,5.37923614,185.9,185.88,4.72248388]
[1754888402670,0.72,185.91,185.88,4.72248388]
[1754888402869,0.72,185.91,185.87,89.6]
[1754888403480,0.72,185.91,185.87,94.32248388]
[1754888403687,0.72,185.91,185.88,4.72248388]
[1754888403894,5.37843686,185.93,185.87,89.6]
[1754888403895,5.37843686,185.93,185.89,4.75248388]
[1754888404180,64.74,185.94,185.89,4.75248388]
[1754888404181,44.11819624,185.94,185.92,4.72248388]
[1754888404487,0.72,185.93,185.91,4.72248388]
[1754888404689,0.72,185.93,185.9,4.72248388]
[1754888404876,0.72,185.93,185.91,4.72248388]
[1754888405602,38.74,185.94,185.91,4.72248388]
[1754888405791,38.74,185.94,185.92,4.72248388]
[1754888406106,0.78,185.99,185.94,15.10621557]
[1754888406316,0.06,185.99,185.95,38.74]
[1754888406604,0.06,185.99,185.98,4.72248388]
[1754888406806,0.06,185.99,185.96,0.58]
[1754888406807,0.78,185.99,185.97,4.72248388]
[1754888406998,0.78,185.99,185.95,38.74]
[1754888407199,0.06,185.99,185.98,4.72248388]
[1754888407603,0.06,185.99,185.98,59.12869945]
[1754888408292,0.78,185.99,185.97,2.151868]
[1754888408490,5.50248388,185.99,185.94,43.44248388]
[1754888408806,0.72,185.98,185.94,38.72]
[1754888409106,0.72,185.98,185.94,43.44248388]
[1754888409409,5.43664475,185.99,185.94,38.72]
[1754888409587,0.72,185.97,185.94,38.72]
[1754888410406,6.09734879,185.97,185.94,38.72]
[1754888412104,5.43692224,185.98,185.94,43.44248388]
[1754888412513,6.15692224,185.98,185.94,43.44248388]
[1754888412725,0.06,185.98,185.97,4.72248388]
[1754888412910,0.06,185.98,185.97,44.02248388]
[1754888413294,0.06,185.98,185.97,59.12869945]
[1754888414017,0.06,185.98,185.97,59.78342694]
[1754888414189,0.06,185.98,185.97,59.12869945]
[1754888414384,0.06,185.98,185.97,53.82621557]
[1754888414703,0.06,185.98,185.97,58.54869945]
[1754888414904,0.06,185.98,185.97,43.44248388]
[1754888415210,0.06,185.98,185.97,54.40621557]
[1754888415506,0.06,185.98,185.97,65.04363195]
[1754888415715,0.06,185.98,185.97,64.50591082]
[1754888417594,0.06,185.98,185.97,59.12869945]
[1754888418422,0.78,185.98,185.97,38.7]
[1754888418602,0.78,185.98,185.95,4.72248388]
[1754888418806,0.72,185.97,185.96,38.7]
[1754888419204,0.06,185.98,185.96,43.42248388]
[1754888419503,0.72,185.97,185.96,38.7]
[1754888419902,0.06,185.98,185.96,43.42248388]
[1754888420082,0.06,185.98,185.97,4.72248388]
[1754888420314,0.78,185.98,185.97,4.72248388]
[1754888420508,0.78,185.98,185.96,38.7]
[1754888420509,6.15692224,185.98,185.96,38.7]
[1754888420712,0.72,185.97,185.96,38.7]
[1754888421911,6.09721137,185.97,185.96,38.7]
[1754888423127,6.09721137,185.97,185.93,15.10621557]
[1754888423299,0.72,185.96,185.94,38.68]
[1754888423504,0.72,185.95,185.94,38.68]
[1754888424999,6.09721137,185.97,185.94,43.40248388]
[1754888425200,6.09721137,185.97,185.94,38.68]
[1754888425520,6.09721137,185.97,185.94,43.40248388]
[1754888426597,6.09721137,185.97,185.94,38.68]
[1754888426795,0.72,185.96,185.94,38.68]
[1754888427794,6.09755741,185.96,185.94,38.68]
[1754888427989,0.72,185.95,185.92,89.6]
[1754888428196,4.72248388,185.93,185.91,0.03]
[1754888428419,4.72248388,185.92,185.91,0.03]
[1754888428619,0.72,185.92,185.91,0.03]
[1754888429123,5.44248388,185.92,185.91,0.03]
[1754888429299,10.82114136,185.92,185.91,0.03]
[1754888430215,10.82114136,185.92,185.89,0.03]
[1754888430416,4.72248388,185.9,185.89,0.03]
[1754888430808,0.72,185.9,185.89,0.03]
[1754888431010,6.09865748,185.92,185.89,0.03]
[1754888431813,5.37865748,185.92,185.89,0.03]
[1754888432024,0.72,185.93,185.89,4.75248388]
[1754888432417,6.09847007,185.93,185.9,4.72248388]
[1754888432597,0.72,185.92,185.89,4.75248388]
[1754888432999,0.72,185.91,185.89,4.75248388]
[1754888433203,6.09916106,185.91,185.89,0.03]
[1754888433505,0.72,185.9,185.89,0.03]
[1754888434029,0.72,185.9,185.89,4.75248388]
[1754888434334,0.72,185.92,185.89,0.03]
[1754888434826,0.72,185.91,185.89,0.03]
[1754888435422,10.10172002,185.9,185.89,0.03]
[1754888435607,5.37923614,185.9,185.89,0.03]
[1754888435808,10.82172002,185.9,185.89,0.03]
[1754888436322,10.82172002,185.9,185.87,0.03]
[1754888436503,4.72248388,185.88,185.87,0.03]
[1754888437025,5.44248388,185.88,185.87,0.03]
[1754888437422,10.82229881,185.88,185.85,0.03]
[1754888437722,5.44248388,185.87,185.85,0.03]
[1754888438108,0.72,185.86,185.85,0.03]
[1754888438308,0.72,185.87,185.85,0.03]
[1754888438821,5.44248388,185.86,185.85,0.03]
[1754888439014,0.72,185.86,185.85,0.03]
[1754888439212,5.44248388,185.86,185.85,0.03]
[1754888439522,10.82287772,185.86,185.85,0.03]
[1754888439823,6.10039384,185.86,185.85,0.03]
[1754888440030,10.82287772,185.86,185.85,0.03]
[1754888445124,5.38039384,185.86,185.85,0.03]
[1754888445329,0.72,185.9,185.85,4.75248388]
[1754888445514,0.72,185.89,185.86,4.72248388]
[1754888445715,0.72,185.93,185.88,4.72248388]
[1754888445946,0.72,185.93,185.9,4.72248388]
[1754888446115,5.37865748,185.92,185.91,4.72248388]
[1754888446445,5.37865748,185.92,185.89,4.72248388]
[1754888446446,6.09865748,185.92,185.89,4.72248388]
[1754888446828,5.37865748,185.92,185.89,4.72248388]
[1754888447025,5.37865748,185.92,185.87,0.58]
[1754888447343,5.37865748,185.92,185.9,4.72248388]
[1754888447641,5.37865748,185.92,185.86,5.38033491]
[1754888447642,5.37787204,185.95,185.91,5.30248388]
[1754888447804,0.72,185.94,185.9,4.72248388]
[1754888448010,0.72,185.94,185.89,4.72248388]
[1754888448208,0.72,185.93,185.88,38.64]
[1754888448419,0.72,185.93,185.89,4.72248388]
[1754888449231,5.37807895,185.94,185.91,4.72248388]
[1754888449431,5.37807895,185.94,185.92,4.72248388]
[1754888450319,5.37778972,185.95,185.92,4.72248388]
[1754888450518,6.09778972,185.95,185.92,4.72248388]
[1754888450931,5.37778972,185.95,185.92,4.72248388]
[1754888451238,0.06,185.96,185.94,4.72248388]
[1754888451437,0.06,185.96,185.95,4.72248388]
[1754888451734,5.43750053,185.96,185.95,4.72248388]
[1754888451937,5.43750053,185.96,185.93,0.58]
[1754888452239,5.43750053,185.96,185.95,4.72248388]
[1754888452736,5.43750053,185.96,185.93,0.58]
[1754888452737,0.06,185.96,185.91,15.10621557]
[1754888452920,0.78,185.96,185.94,4.72248388]
[1754888453242,0.06,185.96,185.95,4.72248388]
[1754888453628,0.06,185.96,185.94,4.72248388]
[1754888454640,0.06,185.95,185.94,4.72248388]
[1754888454951,0.78,185.95,185.93,4.72248388]
[1754888455942,0.06,185.95,185.93,4.72248388]
[1754888456118,0.06,185.95,185.94,4.72248388]
[1754888456320,0.06,185.95,185.93,4.72248388]
[1754888458252,0.78,185.95,185.93,4.72248388]
[1754888459146,0.78,185.95,185.92,4.72248388]
[1754888459847,0.72,185.94,185.92,4.72248388]
[1754888460048,0.06,185.95,185.92,4.72248388]
[1754888460543,0.06,185.95,185.93,4.72248388]
[1754888460846,0.72,185.94,185.91,4.72248388]
[1754888461845,0.72,185.94,185.89,15.10621557]
[1754888462050,0.72,185.94,185.91,4.72248388]
[1754888462552,5.37833255,185.94,185.92,4.72248388]
[1754888463948,5.37833255,185.94,185.9,0.58]
[1754888464257,5.37833255,185.94,185.93,4.72248388]
[1754888464631,5.43778972,185.95,185.93,4.72248388]
[1754888465341,0.06,185.95,185.94,4.72248388]
[1754888465946,0.06,185.95,185.94,20.40869945]
[1754888466652,0.06,185.95,185.94,15.10621557]
[1754888466840,0.06,185.95,185.94,19.82869945]
[1754888467153,0.06,185.95,185.94,20.40869945]
[1754888468252,0.06,185.95,185.94,19.82869945]
[1754888468453,0.06,185.95,185.94,20.40869945]
[1754888469246,0.06,185.95,185.94,58.96869945]
[1754888469451,0.06,185.95,185.94,64.3467784]
[1754888470134,0.06,185.95,185.94,58.96869945]
[1754888470828,0.06,185.95,185.94,64.3467784]
[1754888471155,0.06,185.95,185.94,58.38869945]
[1754888471575,0.06,185.95,185.94,58.96869945]
[1754888471749,0.06,185.95,185.94,64.3467784]
[1754888472552,0.06,185.95,185.94,58.96869945]
[1754888472863,0.06,185.95,185.94,58.38869945]
[1754888475137,0.06,185.95,185.94,64.3467784]
[1754888475762,0.06,185.95,185.94,153.9467784]
[1754888476663,0.06,185.95,185.94,179.9467784]
[1754888479374,0.06,185.95,185.94,153.9467784]
[1754888479538,0.06,185.96,185.95,45.82869945]
[1754888479739,0.06,185.96,185.95,46.94647842]
[1754888480659,0.06,185.96,185.95,52.32426814]
[1754888483072,0.06,185.96,185.95,115.92426814]
[1754888483251,0.06,185.96,185.95,115.38648917]
[1754888483870,0.06,185.98,185.97,50.55118333]
[1754888484061,0.06,185.98,185.97,179.18890446]
[1754888484266,0.06,185.99,185.98,15.10621557]